fUST/lending_fUST_20240328
["ID","MTS","AMOUNT","RATE_DAILY","PERIOD"]
[320793114,1711560643739,-542.88,0.00027127,2]
[320793115,1711560643749,-500.0,0.00027127,2]
[320793116,1711560643759,-500.0,0.00027128,2]
[320793117,1711560643769,-154.0,0.00027185,2]
[320793118,1711560643778,-151.36938099,0.00027208,2]
[320793119,1711560643788,-151.36938099,0.00027223,2]
[320793120,1711560643797,-154.3789555,0.00027274,2]
[320793121,1711560643807,-1666.1460091,0.00027395,2]
[320793122,1711560643816,-831.005574,0.00027397,2]
[320793123,1711560643825,-831.005574,0.00027397,2]
[320793124,1711560643835,-831.005574,0.00027397,2]
[320793125,1711560643844,-831.005574,0.00027397,2]
[320793126,1711560643854,-831.005574,0.00027397,2]
[320793127,1711560643863,-831.005574,0.00027397,2]
[320793128,1711560643873,-831.005574,0.00027397,2]
[320793129,1711560643882,-831.005574,0.00027397,2]
[320793130,1711560643892,-831.005574,0.00027397,2]
[320793131,1711560643902,-831.005574,0.00027397,2]
[320793132,1711560643911,-831.005574,0.00027397,2]
[320793133,1711560643921,-831.005574,0.00027397,2]
[320793134,1711560643930,-831.005574,0.00027397,2]
[320793135,1711560643939,-831.005574,0.00027397,2]
[320793136,1711560643948,-831.005574,0.00027397,2]
[320793137,1711560643958,-831.005574,0.00027397,2]
[320793138,1711560643967,-831.005574,0.00027397,2]
[320793139,1711560643977,-831.005574,0.00027397,2]
[320793140,1711560643986,-831.005574,0.00027397,2]
[320793141,1711560643995,-831.005574,0.00027397,2]
[320793142,1711560644005,-831.005574,0.00027397,2]
[320793143,1711560644014,-831.005574,0.00027397,2]
[320793144,1711560644023,-831.005574,0.00027397,2]
[320793145,1711560644032,-831.005574,0.00027397,2]
[320793146,1711560644042,-831.005574,0.00027397,2]
[320793147,1711560644051,-831.005574,0.00027397,2]
[320793148,1711560644060,-831.005574,0.00027397,2]
[320793149,1711560644069,-831.005574,0.00027397,2]
[320793150,1711560644079,-831.005574,0.00027397,2]
[320793151,1711560644089,-831.005574,0.00027397,2]
[320793152,1711560644098,-831.005574,0.00027397,2]
[320793153,1711560644108,-831.005574,0.00027397,2]
[320793154,1711560644117,-831.005574,0.00027397,2]
[320793155,1711560644127,-831.005574,0.00027397,2]
[320793156,1711560644136,-831.005574,0.00027397,2]
[320793157,1711560644145,-831.005574,0.00027397,2]
[320793158,1711560644155,-831.005574,0.00027397,2]
[320793159,1711560644164,-831.005574,0.00027397,2]
[320793160,1711560644174,-831.005574,0.00027397,2]
[320793161,1711560644183,-831.005574,0.00027397,2]
[320793162,1711560644192,-831.005574,0.00027397,2]
[320793163,1711560644202,-831.005574,0.00027397,2]
[320793164,1711560644211,-831.005574,0.00027397,2]
[320793165,1711560644220,-831.005574,0.00027397,2]
[320793166,1711560644231,-831.005574,0.00027397,2]
[320793167,1711560644241,-831.005574,0.00027397,2]
[320793168,1711560644250,-831.005574,0.00027397,2]
[320793169,1711560644260,-831.005574,0.00027397,2]
[320793170,1711560644270,-831.005574,0.00027397,2]
[320793171,1711560644279,-831.005574,0.00027397,2]
[320793172,1711560644288,-831.005574,0.00027397,2]
[320793173,1711560644298,-831.005574,0.00027397,2]
[320793174,1711560644307,-831.005574,0.00027397,2]
[320793175,1711560644316,-831.005574,0.00027397,2]
[320793176,1711560644326,-831.005574,0.00027397,2]
[320793177,1711560644335,-831.005574,0.00027397,2]
[320793178,1711560644345,-831.005574,0.00027397,2]
[320793179,1711560644355,-818.02111189,0.00027397,2]
[320793180,1711560644365,-818.02111189,0.00027397,2]
[320793181,1711560644376,-818.02111189,0.00027397,2]
[320793182,1711560644386,-818.02111189,0.00027397,2]
[320793183,1711560644395,-818.02111189,0.00027397,2]
[320793184,1711560644404,-818.02111189,0.00027397,2]
[320793185,1711560644414,-818.02111189,0.00027397,2]
[320793186,1711560644424,-818.02111189,0.00027397,2]
[320793187,1711560644434,-818.02111189,0.00027397,2]
[320793188,1711560644443,-818.02111189,0.00027397,2]
[320793189,1711560644453,-818.02111189,0.00027397,2]
[320793190,1711560644463,-818.02111189,0.00027397,2]
[320793191,1711560644474,-818.02111189,0.00027397,2]
[320793192,1711560644486,-818.02111189,0.00027397,2]
[320793193,1711560644497,-818.02111189,0.00027397,2]
[320793194,1711560644507,-818.02111189,0.00027397,2]
[320793195,1711560644518,-818.02111189,0.00027397,2]
[320793196,1711560644528,-818.02111189,0.00027397,2]
[320793197,1711560644537,-818.02111189,0.00027397,2]
[320793198,1711560644547,-818.02111189,0.00027397,2]
[320793199,1711560644693,-818.02111189,0.00027397,2]
[320793200,1711560644703,-818.02111189,0.00027397,2]
[320793201,1711560644712,-818.02111189,0.00027397,2]
[320793202,1711560644722,-818.02111189,0.00027397,2]
[320793203,1711560644732,-818.02111189,0.00027397,2]
[320793204,1711560644742,-818.02111189,0.00027397,2]
[320793205,1711560644752,-818.02111189,0.00027397,2]
[320793206,1711560644761,-818.02111189,0.00027397,2]
[320793207,1711560644770,-818.02111189,0.00027397,2]
[320793208,1711560644780,-818.02111189,0.00027397,2]
[320793209,1711560644789,-868.5162423,0.00027397,2]
[320793210,1711560644799,-868.5162423,0.00027397,2]
[320793211,1711560644808,-868.5162423,0.00027397,2]
[320793212,1711560644817,-3800.61,0.00027397,7]
[320793213,1711560644827,-3800.61,0.00027397,7]
[320793214,1711560644836,-3955.83,0.00027397,2]
[320793215,1711560644845,-3955.83,0.00027397,2]
[320793216,1711560644854,-7299.3,0.00027397,2]
[320793217,1711560644864,-154.3789555,0.0002741,2]
[320793218,1711560644873,-154.3789555,0.00027448,2]
[320793219,1711560644882,-154.3789555,0.00027457,2]
[320793220,1711560644892,-151.36938099,0.00027578,2]
[320793221,1711560644901,-151.36938099,0.00027597,2]
[320793222,1711560644911,-500.0,0.00027639,2]
[320793223,1711560644920,-500.0,0.00027639,2]
[320793224,1711560644929,-151.0,0.00027639,2]
[320793225,1711560644938,-500.0,0.00027639,2]
[320793226,1711560644948,-500.0,0.00027639,2]
[320793227,1711560644957,-500.0,0.00027639,2]
[320793228,1711560644967,-500.0,0.00027639,2]
[320793229,1711560644977,-500.0,0.00027639,2]
[320793230,1711560644987,-500.0,0.00027639,2]
[320793231,1711560644996,-976.82,0.00027639,2]
[320793232,1711560645005,-500.0,0.00027639,2]
[320793233,1711560645014,-500.0,0.00027639,2]
[320793234,1711560645023,-2422.47,0.00027639,2]
[320793235,1711560645033,-2457.28,0.00027639,2]
[320793236,1711560645043,-500.0,0.00027639,2]
[320793237,1711560645052,-500.0,0.00027639,2]
[320793238,1711560645061,-500.0,0.00027639,2]
[320793239,1711560645071,-487.84613097,0.00027639,2]
[320793240,1711560645080,-500.0,0.00027639,2]
[320793241,1711560645090,-500.0,0.00027639,2]
[320793242,1711560645100,-151.36938099,0.00027731,2]
[320793243,1711560645109,-154.3789555,0.00027823,2]
[320793244,1711560645118,-151.36938099,0.00027842,2]
[320793245,1711560645128,-154.3789555,0.00028069,2]
[320793246,1711560645137,-154.3789555,0.00028241,2]
[320793247,1711560645146,-151.36938099,0.00028337,2]
[320793248,1711560645155,-154.3789555,0.00028444,2]
[320793249,1711560645166,-154.3789555,0.00028477,2]
[320793250,1711560645176,-151.36938099,0.00028577,2]
[320793251,1711560645185,-154.3789555,0.0002862,2]
[320793252,1711560645194,-151.36938099,0.00028662,2]
[320793253,1711560645203,-151.36938099,0.000287,2]
[320793254,1711560645213,-154.3789555,0.00028703,2]
[320793255,1711560645222,-151.36938099,0.00028788,2]
[320793256,1711560645233,-154.3789555,0.00028857,2]
[320793257,1711560645242,-154.3789555,0.00028986,2]
[320793258,1711560645251,-151.8958432,0.00028986,2]
[320793259,1711560645260,-154.3789555,0.00029011,2]
[320793260,1711560645270,-151.36938099,0.00029197,2]
[320793261,1711560645279,-151.36938099,0.0002921,2]
[320793262,1711560645289,-155.00310006,0.00029352,2]
[320793263,1711560645298,-151.36938099,0.0002942,2]
[320793264,1711560645307,-1137.776649,0.00029669,2]
[320793265,1711560645317,-151.36938099,0.00029717,2]
[320793266,1711560645326,-151.36938103,0.00029862,2]
[320793267,1711560645335,-1023.24,0.00029866,2]
[320793268,1711560645344,-500.0,0.00029867,2]
[320793269,1711560645353,-1550.3,0.00029867,2]
[320793270,1711560645363,-500.0,0.00029867,2]
[320793271,1711560645373,-500.0,0.00029867,2]
[320793272,1711560645383,-500.0,0.00029867,2]
[320793273,1711560645393,-838.2,0.00029867,2]
[320793274,1711560645403,-500.0,0.00029867,2]
[320793275,1711560645413,-500.0,0.00029867,2]
[320793276,1711560645422,-500.0,0.00029867,2]
[320793277,1711560645431,-745.04,0.00029867,2]
[320793278,1711560645440,-500.0,0.00029867,2]
[320793279,1711560645450,-3800.61,0.00029867,7]
[320793281,1711560645459,-559.35,0.00029867,2]
[320793282,1711560645468,-500.0,0.00029867,2]
[320793284,1711560645480,-1175.86,0.00029867,2]
[320793286,1711560645489,-973.21,0.00029867,2]
[320793288,1711560645499,-500.0,0.00029867,2]
[320793290,1711560645508,-500.0,0.00029867,2]
[320793292,1711560645517,-500.0,0.00029867,2]
[320793293,1711560645527,-14294.65,0.00029867,2]
[320793295,1711560645536,-15913.7,0.00029867,2]
[320793297,1711560645545,-847.27,0.00029867,2]
[320793299,1711560645555,-989.68,0.00029867,2]
[320793301,1711560645566,-2654.55,0.00029867,2]
[320793303,1711560645576,-500.0,0.00029867,2]
[320793305,1711560645587,-2080.74,0.00029867,2]
[320793307,1711560645597,-2914.66,0.00029867,2]
[320793309,1711560645606,-4264.87,0.00029867,2]
[320793311,1711560645615,-500.0,0.00029867,2]
[320793313,1711560645625,-500.0,0.00029867,2]
[320793315,1711560645635,-3955.83,0.00029867,2]
[320793317,1711560645645,-542.88,0.00029867,2]
[320793319,1711560645654,-500.0,0.00029867,2]
[320793321,1711560645664,-500.0,0.00029872,2]
[320793323,1711560645673,-1182.34,0.00029874,2]
[320793325,1711560645683,-155.10081553,0.0003,4]
[320793327,1711560645692,-925.63844725,0.0003,4]
[320793329,1711560645702,-854.98001468,0.0003,2]
[320793331,1711560645711,-391.1117605,0.0003,90]
[320793333,1711560645721,-199.0,0.0003,2]
[320793335,1711560645731,-6250.0,0.00030137,120]
[320793337,1711560645741,-500.0,0.00030379,2]
[320793339,1711560645750,-500.0,0.00030379,2]
[320793340,1711560645760,-151.0,0.00030379,2]
[320793343,1711560645770,-500.0,0.00030379,2]
[320793345,1711560645779,-500.0,0.00030379,2]
[320793347,1711560645789,-500.0,0.00030379,2]
[320793349,1711560645798,-500.0,0.00030379,2]
[320793350,1711560645809,-500.0,0.00030379,2]
[320793352,1711560645817,-500.0,0.00030379,2]
[320793354,1711560645827,-976.82,0.00030379,2]
[320793355,1711560645837,-189.11,0.00030379,2]
[320793356,1711560645846,-500.0,0.00030379,2]
[320793357,1711560645857,-2422.47,0.00030379,2]
[320793358,1711560645866,-2457.28,0.00030379,2]
[320793359,1711560645875,-500.0,0.00030379,2]
[320793360,1711560645885,-500.0,0.00030379,2]
[320793361,1711560645895,-500.0,0.00030379,2]
[320793362,1711560645904,-422.02840348,0.00030379,2]
[320793363,1711560645913,-153.0,0.00030521,2]
[320793364,1711560645923,-1247.63621422,0.0003098,4]
[320793365,1711560645932,-20530.10687486,0.00032,2]
[320793366,1711560645941,-4000.0,0.00032,2]
[320793367,1711560645951,-3000.0,0.00032,2]
[320793368,1711560645960,-3000.0,0.00032,2]
[320793369,1711560645969,-1550.3,0.00032606,2]
[320793370,1711560645980,-500.0,0.00032606,2]
[320793371,1711560645988,-500.0,0.00032606,2]
[320793372,1711560645998,-838.2,0.00032606,2]
[320793373,1711560646007,-500.0,0.00032606,2]
[320793374,1711560646017,-500.0,0.00032606,2]
[320793375,1711560646026,-500.0,0.00032606,2]
[320793376,1711560646035,-745.04,0.00032606,2]
[320793377,1711560646045,-500.0,0.00032606,2]
[320793378,1711560646054,-3800.61,0.00032606,7]
[320793379,1711560646064,-559.35,0.00032606,2]
[320793380,1711560646073,-500.0,0.00032606,2]
[320793381,1711560646082,-1175.86,0.00032606,2]
[320793382,1711560646091,-973.21,0.00032606,2]
[320793383,1711560646100,-500.0,0.00032606,2]
[320793384,1711560646110,-500.0,0.00032606,2]
[320793385,1711560646119,-487.64015608,0.00032606,2]
[320793386,1711560646128,-14294.65,0.00032606,2]
[320793387,1711560646137,-15913.7,0.00032606,2]
[320793388,1711560646146,-847.27,0.00032606,2]
[320793389,1711560646156,-989.68,0.00032606,2]
[320793390,1711560646166,-2654.55,0.00032606,2]
[320793391,1711560646175,-500.0,0.00032606,2]
[320793392,1711560646184,-2080.74,0.00032606,2]
[320793393,1711560646194,-2914.66,0.00032606,2]
[320793394,1711560646203,-4264.87,0.00032606,2]
[320793395,1711560646212,-500.0,0.00032606,2]
[320793396,1711560646221,-500.0,0.00032606,2]
[320793397,1711560646232,-3955.83,0.00032606,2]
[320793398,1711560646241,-542.88,0.00032606,2]
[320793400,1711560646250,-500.0,0.00032606,2]
[320793402,1711560646259,-1023.24,0.00032606,2]
[320793403,1711560646269,-422.72967183,0.00032607,2]
[320793404,1711560646279,-2231.13961454,0.00032611,3]
[320793405,1711560646288,-500.0,0.00032611,2]
[320793406,1711560646297,-1009.31708576,0.00032613,4]
[320793407,1711560646307,-1182.34,0.00032613,2]
[320793408,1711560646316,-500.0,0.00032613,2]
[320793409,1711560646326,-154.0,0.00032622,2]
[320793410,1711560646335,-200.23051881,0.00032886,2]
[320793411,1711560646345,-258.44640371,0.00033,4]
[320793412,1711560646355,-199.0,0.00033,2]
[320793414,1711560646364,-199.0,0.00033,2]
[320793416,1711560646374,-500.0,0.00033118,2]
[320793417,1711560646383,-614.66623124,0.00033118,2]
[320793419,1711560646393,-151.0,0.00033118,2]
[320793421,1711560646402,-500.0,0.00033118,2]
[320793423,1711560646411,-500.0,0.00033118,2]
[320793425,1711560646421,-500.0,0.00033118,2]
[320793427,1711560646430,-500.0,0.00033118,2]
[320793429,1711560646440,-500.0,0.00033118,2]
[320793431,1711560646449,-500.0,0.00033118,2]
[320793433,1711560646459,-976.82,0.00033118,2]
[320793435,1711560646468,-500.0,0.00033118,2]
[320793437,1711560646480,-2422.47,0.00033118,2]
[320793439,1711560646490,-2457.28,0.00033118,2]
[320793441,1711560646499,-500.0,0.00033118,2]
[320793443,1711560646509,-500.0,0.00033118,2]
[320793445,1711560646518,-500.0,0.00033118,2]
[320793447,1711560646527,-462.73220732,0.00034,4]
[320793449,1711560646537,-576.0,0.00034,2]
[320793451,1711560646546,-996.0,0.0003416,5]
[320793453,1711560646556,-1261.85421249,0.00034728,12]
[320793455,1711560646567,-160.0,0.00034738,3]
[320793457,1711560646577,-295.0,0.000349,7]
[320793459,1711560646586,-500.0,0.00034958,120]
[320793460,1711560646596,-500.0,0.00034958,120]
[320793462,1711560646606,-500.0,0.00034958,120]
[320793464,1711560646615,-500.0,0.00034958,120]
[320793466,1711560646624,-523.72,0.00034958,120]
[320793468,1711560646633,-8766.21,0.00034959,2]
[320793470,1711560646642,-8766.21,0.00034959,2]
[320793472,1711560646651,-8766.21,0.00034959,2]
[320793474,1711560646660,-8766.21,0.00034959,2]
[320793476,1711560646669,-8766.21,0.00034959,2]
[320793478,1711560646680,-8766.21,0.00034959,2]
[320793480,1711560646689,-8766.21,0.00034959,2]
[320793481,1711560646698,-8766.21,0.00034959,2]
[320793483,1711560646707,-100000.0,0.00035,15]
[320793485,1711560646718,-1526.61302184,0.00035,2]
[320793487,1711560646728,-11047.57009305,0.00035,30]
[320793490,1711560646744,-19245.92065601,0.00035,30]
[320793494,1711560646770,-1076.53995674,0.00024899,2]
[320793496,1711560646780,-304.93968211,0.00027126,2]
[320793498,1711560646789,-2747.96002883,0.00027126,2]
[320793500,1711560646800,-51034.14096632,0.00035,30]
[320793502,1711560646810,-155.39919287,0.00035,30]
[320793503,1711560646820,-155.02790502,0.00035,4]
[320793504,1711560646829,-666.05455207,0.00035,2]
[320793505,1711560646838,-661.0,0.00035,2]
[320793506,1711560646848,-6904.89180487,0.00035,4]
[320793507,1711560646857,-175.24442191,0.00035,30]
[320793508,1711560646867,-3749.5827311,0.00035,2]
[320793509,1711560646876,-10208.83536216,0.00035,2]
[320793510,1711560646885,-718.61219343,0.00035,2]
[320793511,1711560646894,-6213.22810441,0.00035,7]
[320793512,1711560646904,-5002.18879253,0.00035,30]
[320793513,1711560646913,-5282.88692482,0.00035,4]
[320793514,1711560646922,-10000.0,0.00035,4]
[320793515,1711560646932,-10000.0,0.00035,4]
[320793516,1711560646941,-4729.01244326,0.00035,4]
[320793517,1711560646972,313.58509565,0.00019,2]
[320794588,1711561832172,-1923.09795878,0.00022805,2]
[320794589,1711561832182,-322.99661905,0.00022806,2]
[320794590,1711561832191,-3306.47265917,0.00022806,2]
[320794591,1711561832221,-398.43748639,0.00022806,2]
[320794592,1711561832232,-166.666666,0.00022811,2]
[320794593,1711561832243,-241.83291114,0.00023,2]
[320794594,1711561832254,-166.666666,0.00023433,2]
[320794595,1711561832264,-166.666666,0.00024055,2]
[320794596,1711561832275,-134.43336743,0.00024287,2]
[320794597,1711561832298,-378.40322329,0.00024287,2]
[320794598,1711561832308,-154.95351395,0.00024386,2]
[320794599,1711561832318,-500.0,0.00024386,2]
[320794600,1711561832327,-151.0,0.00024386,2]
[320794601,1711561832337,-500.0,0.00024386,2]
[320794602,1711561832347,-500.0,0.00024386,2]
[320794603,1711561832357,-500.0,0.00024386,2]
[320794604,1711561832367,-500.0,0.00024386,2]
[320794605,1711561832377,-500.0,0.00024386,2]
[320794606,1711561832388,-500.0,0.00024386,2]
[320794607,1711561832397,-500.0,0.00024386,2]
[320794608,1711561832408,-814.02,0.00024386,2]
[320794609,1711561832418,-501.37000504,0.00024386,2]
[320794610,1711561832429,-500.0,0.00024386,2]
[320794611,1711561832441,-500.0,0.00024386,2]
[320794612,1711561832452,-500.0,0.00024386,2]
[320794613,1711561832462,-500.0,0.00024386,2]
[320794614,1711561832473,-500.0,0.00024386,2]
[320794615,1711561832483,-500.0,0.00024386,2]
[320794616,1711561832493,-500.0,0.00024386,2]
[320794617,1711561832502,-500.0,0.00024386,2]
[320794618,1711561832512,-13261.42,0.00024386,2]
[320794619,1711561832522,-359.05284689,0.00024386,2]
[320794683,1711561838198,-140.94715311,0.00024386,2]
[320794685,1711561838207,-500.0,0.00024386,2]
[320794688,1711561838217,-500.0,0.00024387,2]
[320794689,1711561838226,-500.0,0.00024387,2]
[320794691,1711561838235,-187.0573238,0.00024658,2]
[320794694,1711561838244,-166.666666,0.00024677,2]
[320794696,1711561838254,-2194.83110204,0.00025,2]
[320794698,1711561838266,-5567.44220235,0.00025,2]
[320794700,1711561838275,-166.666666,0.00025299,2]
[320794702,1711561838284,-512.8365907,0.00025657,2]
[320794704,1711561838294,-166.666666,0.00025921,2]
[320794706,1711561838303,-10.95396015,0.00027,2]
[320794859,1711561843516,-350.6215962,0.000229,2]
[320794861,1711561843526,-3099.02684295,0.00027,2]
[320794863,1711561843535,-512.8365907,0.00027027,2]
[320794865,1711561843545,-500.0,0.00027124,2]
[320794867,1711561843554,-500.0,0.00027124,2]
[320794869,1711561843564,-500.0,0.00027124,2]
[320794871,1711561843574,-620.87,0.00027124,2]
[320794873,1711561843584,-500.0,0.00027124,2]
[320794875,1711561843593,-706.06,0.00027124,2]
[320794877,1711561843603,-1733.95,0.00027124,2]
[320794879,1711561843612,-500.0,0.00027124,2]
[320794881,1711561843622,-3554.06,0.00027124,2]
[320794883,1711561843631,-698.5,0.00027124,2]
[320794885,1711561843640,-852.7,0.00027124,2]
[320794887,1711561843650,-500.0,0.00027125,2]
[320794889,1711561843660,-500.0,0.00027125,2]
[320794891,1711561843670,-500.0,0.00027125,2]
[320794893,1711561843679,-4.74999472,0.00027125,2]
[320795085,1711561846416,-732.366978,0.00026999,2]
[320806967,1711562033381,12236.66420017,0.0002,2]
[320806995,1711562549755,1244.50440463,0.00025328,30]
[320806999,1711562747396,309.98314488,0.000189,2]
[320807000,1711562774230,500.0,0.000189,2]
[320807001,1711562780802,415.70652721,0.000189,2]
[320807002,1711562788064,500.0,0.000189,2]
[320807003,1711562796809,415.70652721,0.000189,2]
[320807004,1711562802000,500.0,0.000189,2]
[320807005,1711562818802,420.26921058,0.000189,2]
[320807006,1711562884965,5000.0,0.0002111,4]
[320807007,1711562892792,5000.0,0.0002111,4]
[320807008,1711562901042,186.55408737,0.0002111,4]
[320807051,1711563032890,-155.00620025,0.00020784,2]
[320807052,1711563032899,-278.75015211,0.00020785,2]
[320807053,1711563032909,-333.91097052,0.00020785,2]
[320807054,1711563032918,-291.49576518,0.00020785,2]
[320807056,1711563032927,-205.37769357,0.00020786,2]
[320807058,1711563032937,-780.7394247,0.00020786,2]
[320807060,1711563032947,-1479.1991598,0.00020786,2]
[320807062,1711563032956,-302.75399207,0.00020787,2]
[320807064,1711563032966,-155.00620025,0.00020787,2]
[320807066,1711563032975,-471.31610844,0.00020788,2]
[320807068,1711563032984,-322.99661905,0.00020788,2]
[320807070,1711563032994,-155.00620025,0.00020788,2]
[320807072,1711563033003,-187.86952971,0.00020788,2]
[320807074,1711563033013,-3445.68097789,0.00020788,2]
[320807075,1711563033023,-535.64874978,0.00020789,2]
[320807077,1711563033032,-1773.8471955,0.00020793,2]
[320807078,1711563033042,-797.160671,0.00020862,2]
[320807079,1711563033051,-903.50912192,0.00021109,2]
[320807166,1711563038382,-180.36529286,0.00021108,2]
[320807168,1711563038392,-171.12955822,0.00021109,2]
[320807171,1711563038404,-14.75394466,0.00021109,2]
[320807173,1711563038414,-4813.44591263,0.0002111,4]
[320807176,1711563038422,-155.00620025,0.0002111,2]
[320807178,1711563038431,-10805.17455185,0.0002111,2]
[320807181,1711563038443,-3888.61963595,0.0002111,2]
[320807185,1711563038456,-1293.69160098,0.0002111,2]
[320807189,1711563038465,-4885.70839902,0.0002111,2]
[320807193,1711563038478,-14179.51721343,0.0002111,2]
[320807196,1711563038487,-200.0,0.00021287,2]
[320807201,1711563038497,-166.666666,0.00021918,2]
[320807204,1711563038506,-166.666666,0.00022431,2]
[320807207,1711563038515,-215.42561,0.00022628,2]
[320807209,1711563038525,-155.43149355,0.00022628,2]
[320807211,1711563038534,-1301.46396623,0.00022628,2]
[320807213,1711563038544,-562.58817756,0.00022628,2]
[320807215,1711563038554,-267.94756789,0.00022628,2]
[320807217,1711563038564,-155.38840476,0.00022628,2]
[320807218,1711563038574,-864.38002108,0.00022629,2]
[320807220,1711563038584,-1640.0,0.0002263,2]
[320807222,1711563038599,-24890.0,0.0002263,2]
[320807224,1711563038612,-166.666666,0.00022944,2]
[320807226,1711563038622,-241.83291114,0.00023,2]
[320807229,1711563038633,-166.666666,0.00023456,2]
[320807230,1711563038643,-309.98314488,0.000239,2]
[320807233,1711563038655,-166.666666,0.00023969,2]
[320807234,1711563038665,-4548.69371222,0.00024,2]
[320807237,1711563038677,-1040.88859011,0.00024,2]
[320807239,1711563038690,-4559.23251508,0.00024,2]
[320807241,1711563038700,-223.58729636,0.00024282,2]
[320807243,1711563038711,-205.13463628,0.00024382,2]
[320807245,1711563038721,-166.666666,0.00024482,2]
[320807247,1711563038731,-205.13463628,0.00024518,2]
[320807249,1711563038740,-205.13463628,0.00024653,2]
[320807252,1711563038759,-205.13463628,0.00024789,2]
[320807254,1711563038770,-300.83471459,0.00024898,2]
[320807256,1711563038781,-234.4551374,0.00024898,2]
[320807258,1711563038790,-500.0,0.00024899,2]
[320807260,1711563038799,-676.64,0.00024899,2]
[320807263,1711563038809,-1661.7,0.00024899,2]
[320807265,1711563038818,-669.39,0.00024899,2]
[320807267,1711563038828,-3405.97,0.00024899,2]
[320807269,1711563038840,-979.89,0.00024899,2]
[320807271,1711563038849,-817.17,0.00024899,2]
[320807273,1711563038859,-500.0,0.00024899,2]
[320807275,1711563038868,-500.0,0.00024899,2]
[320807277,1711563038878,-500.0,0.00024899,2]
[320807279,1711563038889,-500.0,0.00024899,2]
[320807281,1711563038898,-11912.2,0.00024899,2]
[320807282,1711563038908,-595.0,0.00024899,2]
[320807285,1711563038918,-34010.60837047,0.00024899,2]
[320807287,1711563038927,-49850.01324887,0.000249,2]
[320807289,1711563038936,-223.58729634,0.00024905,2]
[320807291,1711563038945,-205.13463628,0.00024924,2]
[320807293,1711563038955,-151.0,0.00024999,2]
[320807295,1711563038964,-534.61946006,0.00024999,2]
[320807297,1711563038973,-310.31962922,0.00024999,2]
[320807299,1711563038983,-500.0,0.00024999,2]
[320807300,1711563038993,-500.0,0.00024999,2]
[320807301,1711563039003,-207.00769808,0.00024999,2]
[320807302,1711563039012,-310.31807604,0.00024999,2]
[320807303,1711563039022,-500.0,0.00024999,2]
[320807304,1711563039034,-41144.38133092,0.00025,3]
[320807373,1711563040535,-263.28803895,0.00021108,2]
[320807375,1711563040546,-6598.81196105,0.00025,3]
[320807377,1711563040558,-665.0,0.00025,3]
[320807392,1711563043664,-626.28533434,0.00021108,2]
[320807394,1711563043673,-155.00620025,0.00021108,2]
[320807396,1711563043683,-1580.03693859,0.00024999,2]
[320807398,1711563043692,-87078.48052218,0.00025,3]
[320807400,1711563043702,-7762.27330439,0.00025,2]
[320807402,1711563043712,-144786.60276504,0.00025,2]
[320807404,1711563043721,-223.58729634,0.00025527,2]
[320807406,1711563043731,-602.6710719,0.00025627,2]
[320807408,1711563043741,-500.0,0.00025627,2]
[320807410,1711563043751,-500.0,0.00025627,2]
[320807412,1711563043761,-811.01,0.00025627,2]
[320807414,1711563043771,-500.0,0.00025627,2]
[320807416,1711563043780,-824.73,0.00025627,2]
[320807418,1711563043790,-500.0,0.00025627,2]
[320807420,1711563043799,-2212.12,0.00025627,2]
[320807422,1711563043809,-500.0,0.00025627,2]
[320807424,1711563043819,-500.0,0.00025627,2]
[320807426,1711563043829,-500.0,0.00025627,2]
[320807428,1711563043839,-2047.73,0.00025627,2]